bitfinex/quotes_BTCUSD_20240911
["timestamp","ask_amount","ask_price","bid_price","bid_amount"]
[1726025961475,1.38469092,56961.0,56960.0,0.07124949]
[1726025961712,1.73580792,56961.0,56960.0,0.07124949]
[1726025962233,1.73580792,56961.0,56960.0,0.00604949]
[1726025963512,1.73662592,56961.0,56960.0,0.00604949]
[1726025965315,1.6124187,56961.0,56960.0,0.00604949]
[1726025967566,1.2613017,56961.0,56960.0,0.00604949]
[1726025967793,1.08206795,56961.0,56960.0,0.00604949]
[1726025968242,0.73095095,56961.0,56960.0,0.00604949]
[1726025969418,0.02833577,56961.0,56960.0,1.05285649]
[1726025970302,0.02833577,56961.0,56960.0,1.40397949]
[1726025970518,0.02833577,56961.0,56960.0,1.45657984]
[1726025970964,0.02833577,56961.0,56960.0,1.40397949]
[1726025971179,0.02833577,56961.0,56960.0,1.45663169]
[1726025971402,0.02933577,56961.0,56960.0,1.75821471]
[1726025971613,0.02933577,56961.0,56960.0,1.78451489]
[1726025971827,0.02933577,56961.0,56960.0,1.67931418]
[1726025972252,0.02933577,56961.0,56960.0,1.75828326]
[1726025972721,0.02933577,56961.0,56960.0,1.67831418]
[1726025973148,0.02833577,56961.0,56960.0,1.78151489]
[1726025973396,0.02833577,56961.0,56960.0,1.75473312]
[1726025973654,0.02833577,56961.0,56960.0,2.33614954]
[1726025973872,1.18012818,56979.0,56978.0,0.139]
[1726025974108,0.70376536,56979.0,56978.0,0.139]
[1726025974360,0.17594018,56979.0,56978.0,0.139]
[1726025976869,0.17694018,56979.0,56978.0,0.139]
[1726025977047,0.35444318,56979.0,56978.0,0.139]
[1726025977260,0.35344318,56979.0,56978.0,0.139]
[1726025977531,0.35144318,56979.0,56978.0,0.139]
[1726025977747,0.35144318,56979.0,56978.0,0.143]
[1726025977960,0.35144318,56979.0,56978.0,0.14]
[1726025978392,0.35144318,56979.0,56978.0,0.142]
[1726025978606,0.35144318,56979.0,56978.0,0.139]
[1726025978829,0.35244318,56979.0,56978.0,0.139]
[1726025979090,0.35244318,56979.0,56978.0,0.14]
[1726025979325,0.70344918,56979.0,56978.0,0.14]
[1726025979524,0.35244318,56979.0,56978.0,0.14]
[1726025979760,0.70344918,56979.0,56978.0,0.14]
[1726025979980,0.35144318,56979.0,56978.0,0.14]
[1726025980182,0.35144318,56979.0,56978.0,0.141]
[1726025980427,0.35144318,56979.0,56978.0,0.14]
[1726025980657,0.70244918,56979.0,56978.0,0.14]
[1726025980886,1.057843,56979.0,56978.0,0.143]
[1726025981540,1.057843,56979.0,56978.0,0.004]
[1726025981541,1.54534368,56979.0,56978.0,0.004]
[1726025982656,1.44303853,56979.0,56978.0,0.004]
[1726025983398,1.08096639,56979.0,56978.0,0.004]
[1726025987964,1.08178439,56979.0,56978.0,0.004]
[1726025996640,0.20426939,56979.0,56978.0,0.0791]
[1726025997144,0.73077839,56979.0,56978.0,0.0791]
[1726025998197,0.20426939,56979.0,56978.0,0.0791]
[1726025998838,0.02832921,56979.0,56978.0,0.284606]
[1726025999738,0.02832921,56979.0,56978.0,0.1091]
[1726025999943,0.20383221,56979.0,56978.0,0.1091]
[1726026000833,0.73077839,56979.0,56978.0,0.004]
[1726026001075,1.20804602,56979.0,56978.0,0.004]
[1726026001296,1.55905202,56979.0,56978.0,0.003]
[1726026001919,0.877622,56972.0,56971.0,0.0002113]
[1726026002127,1.16110944,56972.0,56971.0,0.0002113]
[1726026002331,1.16110944,56972.0,56967.0,0.03]
[1726026002332,0.63453644,56972.0,56967.0,0.03]
[1726026002546,0.17594018,56971.0,56967.0,0.03]
[1726026002762,0.17554,56967.0,56966.0,0.03]
[1726026005245,0.17654,56967.0,56966.0,0.034]
[1726026005447,0.52862,56967.0,56966.0,0.041]
[1726026006276,0.52762,56967.0,56966.0,0.037]
[1726026006481,0.17654,56967.0,56966.0,0.037]
[1726026006920,0.17554,56967.0,56966.0,0.03]
[1726026007353,0.20305168,56967.0,56966.0,0.032]
[1726026007791,0.17554,56967.0,56966.0,0.032]
[1726026007997,0.17554,56967.0,56966.0,0.002]
[1726026007998,1.05364018,56967.0,56966.0,0.002]
[1726026008447,1.05364018,56967.0,56966.0,0.006]
[1726026008448,1.19233894,56967.0,56966.0,0.006]
[1726026008871,1.19212764,56967.0,56966.0,0.004]
[1726026009075,0.526666,56962.0,56961.0,0.066036]
[1726026009321,0.70260618,56962.0,56961.0,0.066036]
[1726026009753,0.70260618,56962.0,56961.0,0.001636]
[1726026010438,0.35149518,56962.0,56961.0,0.001636]
[1726026011111,0.70260618,56962.0,56961.0,0.001636]
[1726026011591,0.35149518,56962.0,56961.0,0.001636]
[1726026012244,0.35249518,56962.0,56961.0,0.002636]
[1726026013493,1.05471718,56962.0,56961.0,0.002636]
[1726026013947,0.70360618,56962.0,56961.0,0.002636]
[1726026014168,0.82093272,56962.0,56961.0,0.002636]
[1726026014370,1.05471718,56962.0,56961.0,0.002636]
[1726026015289,1.46772818,56962.0,56961.0,0.002636]
[1726026015706,1.11661718,56962.0,56961.0,0.002636]
[1726026016148,1.46772818,56962.0,56961.0,0.002636]
[1726026017058,0.35249518,56962.0,56961.0,0.002636]
[1726026017692,1.05471718,56962.0,56961.0,0.002636]
[1726026018762,1.08223306,56962.0,56961.0,0.002636]
[1726026018980,1.20234931,56962.0,56961.0,0.002636]
[1726026019233,2.04487131,56962.0,56961.0,0.002636]
[1726026019484,2.14487131,56962.0,56961.0,0.002636]
[1726026020153,2.19921606,56962.0,56961.0,0.002636]
[1726026020373,2.19921606,56962.0,56949.0,0.0046679]
[1726026020374,0.491485,56950.0,56949.0,0.0046679]
[1726026020597,1.35089794,56950.0,56949.0,0.0046679]
[1726026020813,1.70208294,56950.0,56949.0,0.0046679]
[1726026021668,2.05326794,56950.0,56949.0,0.0046679]
[1726026022311,2.13824325,56950.0,56949.0,0.0046679]
[1726026023616,2.23824325,56950.0,56949.0,0.0046679]
[1726026023815,2.25024325,56950.0,56949.0,0.0046679]
[1726026024458,2.28450423,56950.0,56949.0,0.0046679]
[1726026024869,2.28450423,56950.0,56949.0,0.0063039]
[1726026025313,2.23450423,56950.0,56949.0,0.0063039]
[1726026027096,2.23450423,56950.0,56944.0,0.001636]
[1726026027097,1.229256,56945.0,56944.0,0.001636]
[1726026027296,1.229256,56945.0,56938.0,0.0041246]
[1726026027297,0.84669157,56940.0,56938.0,0.0041246]
[1726026027528,1.37387775,56940.0,56938.0,0.0041246]
[1726026027731,2.17636975,56940.0,56938.0,0.0041246]
[1726026027846,2.38007068,56940.0,56938.0,0.0041246]
[1726026029109,2.40307068,56940.0,56938.0,0.0041246]
[1726026029789,2.41707068,56940.0,56938.0,0.0041246]
[1726026031569,2.43107068,56940.0,56938.0,0.0041246]
[1726026032808,2.43307068,56940.0,56938.0,0.0041246]
[1726026033440,2.17850113,56940.0,56938.0,0.0041246]
[1726026033655,1.75161805,56940.0,56938.0,0.0041246]
[1726026034506,1.73761805,56940.0,56938.0,0.0041246]
[1726026034923,1.75161805,56940.0,56938.0,0.0041246]
[1726026035364,1.73761805,56940.0,56938.0,0.0041246]
[1726026035575,2.3502336,56940.0,56938.0,0.0041246]
[1726026035783,2.3362336,56940.0,56938.0,0.0041246]
[1726026036240,2.3472336,56940.0,56938.0,0.0041246]
[1726026036452,2.3572336,56940.0,56938.0,0.0041246]
[1726026036665,2.3472336,56940.0,56938.0,0.0041246]
[1726026037079,2.3612336,56940.0,56938.0,0.0041246]
[1726026037320,2.0119876,56940.0,56938.0,0.0041246]
[1726026037541,2.3492336,56940.0,56938.0,0.0041246]
[1726026037764,1.9979876,56940.0,56938.0,0.0041246]
[1726026037975,2.5483336,56940.0,56938.0,0.0041246]
[1726026038245,2.3382336,56940.0,56938.0,0.0041246]
[1726026038447,2.3522336,56940.0,56938.0,0.0041246]
[1726026038654,2.0009876,56940.0,56938.0,0.0041246]
[1726026039002,1.9869876,56940.0,56938.0,0.0041246]
[1726026039357,2.3522336,56940.0,56938.0,0.0041246]
[1726026040632,2.3662336,56940.0,56938.0,0.0041246]
[1726026043519,2.0149876,56940.0,56938.0,0.0041246]
[1726026044182,2.3662336,56940.0,56938.0,0.0041246]
[1726026045679,2.0149876,56940.0,56938.0,0.0041246]
[1726026046357,2.3662336,56940.0,56938.0,0.0041246]
[1726026046798,2.0149876,56940.0,56938.0,0.0041246]
[1726026047688,2.0129876,56940.0,56938.0,0.0041246]
[1726026048597,2.3642336,56940.0,56938.0,0.0041246]
[1726026048937,2.0129876,56940.0,56938.0,0.0041246]
[1726026049146,2.3642336,56940.0,56938.0,0.0041246]
[1726026049553,2.0129876,56940.0,56938.0,0.0041246]
[1726026051082,2.3662336,56940.0,56938.0,0.0041246]
[1726026052970,2.0149876,56940.0,56938.0,0.0041246]
[1726026053640,2.3662336,56940.0,56938.0,0.0041246]
[1726026053852,2.0129876,56940.0,56938.0,0.0041246]
[1726026054287,1.94121008,56940.0,56938.0,0.0041246]
[1726026054713,2.29245608,56940.0,56938.0,0.0041246]
[1726026055158,2.29445608,56940.0,56938.0,0.0041246]
[1726026055795,1.94321008,56940.0,56938.0,0.0041246]
[1726026056512,2.29245608,56940.0,56938.0,0.0041246]
[1726026056946,1.94121008,56940.0,56938.0,0.0041246]
[1726026057169,2.29245608,56940.0,56938.0,0.0041246]
[1726026058237,1.94121008,56940.0,56938.0,0.0041246]
[1726026058665,2.29245608,56940.0,56938.0,0.0041246]
[1726026058905,1.22084948,56940.0,56938.0,0.0041246]
[1726026059367,1.57209548,56940.0,56938.0,0.0041246]
[1726026060056,1.54409548,56940.0,56938.0,0.0041246]
[1726026060467,1.55809548,56940.0,56938.0,0.0041246]
[1726026061389,1.54409548,56940.0,56938.0,0.0041246]
[1726026061615,1.73426503,56940.0,56938.0,0.0041246]
[1726026061837,1.74826503,56940.0,56938.0,0.0041246]
[1726026062289,1.73426503,56940.0,56938.0,0.0041246]
[1726026062769,1.74826503,56940.0,56938.0,0.0041246]
[1726026063197,1.73426503,56940.0,56938.0,0.0041246]
[1726026064040,1.72026503,56940.0,56938.0,0.0041246]
[1726026064444,1.73426503,56940.0,56938.0,0.0041246]
[1726026065093,1.74826503,56940.0,56938.0,0.0041246]
[1726026065539,1.73426503,56940.0,56938.0,0.0041246]
[1726026065768,1.74826503,56940.0,56938.0,0.0041246]
[1726026067536,1.80022185,56940.0,56938.0,0.0041246]
[1726026067750,1.9079669,56940.0,56938.0,0.0041246]
[1726026068609,1.93394532,56940.0,56938.0,0.0041246]
[1726026069497,1.85601008,56940.0,56938.0,0.0041246]
[1726026069730,1.95992373,56940.0,56938.0,0.0041246]
[1726026070664,2.00890214,56940.0,56938.0,0.0041246]
[1726026071327,2.36014814,56940.0,56938.0,0.0041246]
[1726026071570,2.48304814,56940.0,56938.0,0.0041246]
[1726026071779,1.642638,56939.0,56938.0,0.0041246]
[1726026072003,2.18064773,56939.0,56938.0,0.0041246]
[1726026072228,2.53190073,56939.0,56938.0,0.0041246]
[1726026073087,2.54590073,56939.0,56938.0,0.0041246]
[1726026073741,1.69046405,56936.0,56931.0,0.001632]
[1726026073960,2.32035586,56936.0,56931.0,0.001632]
[1726026074591,2.1611366,56936.0,56931.0,0.001632]
[1726026075282,1.71795583,56936.0,56934.0,0.1483]
[1726026075767,1.61313323,56936.0,56934.0,0.1483]
[1726026075986,1.62513323,56936.0,56934.0,0.1483]
[1726026076208,1.69695527,56936.0,56934.0,0.1483]
[1726026077356,1.70695527,56936.0,56934.0,0.1483]
[1726026077579,1.81178041,56936.0,56934.0,0.1483]
[1726026078450,2.01415625,56936.0,56931.0,0.001632]
[1726026078659,1.88312482,56936.0,56931.0,0.001632]
[1726026079089,2.01415331,56936.0,56931.0,0.001632]
[1726026080408,1.88312482,56936.0,56931.0,0.001632]
[1726026080638,2.01415783,56936.0,56931.0,0.001632]
[1726026081536,1.99215783,56936.0,56931.0,0.001632]
[1726026082051,2.01415783,56936.0,56931.0,0.001632]
[1726026082511,1.99215783,56936.0,56931.0,0.001632]
[1726026082962,2.00215783,56936.0,56931.0,0.001632]
[1726026084106,1.82598828,56936.0,56931.0,0.001632]
[1726026084328,1.83398828,56936.0,56931.0,0.001632]
[1726026085547,1.70295527,56936.0,56935.0,0.149932]
[1726026085784,0.54521118,56936.0,56935.0,0.149932]
[1726026086013,1.07211718,56936.0,56935.0,0.149932]
[1726026087416,1.23637204,56936.0,56935.0,0.149932]
[1726026087642,1.41593913,56936.0,56935.0,0.149932]
[1726026088822,1.117077,56936.0,56935.0,0.149932]
[1726026089291,0.95282214,56936.0,56935.0,0.149932]
[1726026090656,0.90041327,56936.0,56935.0,0.149932]
[1726026091462,0.54914227,56936.0,56935.0,0.149932]
[1726026092551,0.90041327,56936.0,56935.0,0.149932]
[1726026095832,0.54914227,56936.0,56935.0,0.149932]
[1726026096053,0.018,56936.0,56935.0,0.706847]
[1726026096332,0.018,56936.0,56935.0,0.149932]
[1726026096333,0.36957518,56936.0,56935.0,0.149932]
[1726026096702,0.19394018,56936.0,56935.0,0.149932]
[1726026097116,0.19394018,56936.0,56935.0,0.32557]
[1726026097786,0.18394018,56936.0,56935.0,0.32557]
[1726026097994,0.22131333,56936.0,56935.0,0.149932]
[1726026098444,0.21331333,56936.0,56935.0,0.154932]
[1726026098906,0.21331333,56936.0,56935.0,0.150932]
[1726026099108,0.21331333,56936.0,56935.0,0.149932]
[1726026099325,0.21431333,56936.0,56935.0,0.149932]
[1726026099502,0.21431333,56936.0,56935.0,0.150932]
[1726026099842,0.32202628,56936.0,56935.0,0.150932]
[1726026100085,0.49766128,56936.0,56935.0,0.150932]
[1726026102477,0.46028813,56936.0,56935.0,0.150932]
[1726026103321,0.28465313,56936.0,56935.0,0.150932]
[1726026103558,0.17694018,56936.0,56935.0,0.150932]
[1726026106430,0.35257518,56936.0,56935.0,0.150932]
[1726026107085,0.17694018,56936.0,56935.0,0.150932]
[1726026107298,0.35257518,56936.0,56935.0,0.150932]
[1726026107507,0.17694018,56936.0,56935.0,0.150932]
[1726026109088,0.26092923,56936.0,56935.0,0.150932]
[1726026111002,0.17694018,56936.0,56935.0,0.150932]
[1726026111659,0.35257518,56936.0,56935.0,0.150932]
[1726026111861,0.17694018,56936.0,56935.0,0.150932]
[1726026113343,0.70384618,56936.0,56935.0,0.150932]
[1726026114453,0.35257518,56936.0,56935.0,0.150932]
[1726026114662,0.70384618,56936.0,56935.0,0.150932]
[1726026114879,0.82296253,56936.0,56935.0,0.150932]
[1726026115344,0.47169153,56936.0,56935.0,0.150932]
[1726026116640,0.47169153,56936.0,56935.0,0.002632]
[1726026116641,1.17423353,56936.0,56935.0,0.002632]
[1726026116873,1.52550453,56936.0,56935.0,0.002632]
[1726026117097,1.28194648,56936.0,56935.0,0.002632]
[1726026120899,1.29287213,56936.0,56935.0,0.002632]
[1726026121529,1.64414313,56936.0,56935.0,0.002632]
[1726026122184,1.70624313,56936.0,56935.0,0.002632]
[1726026122396,1.7586313,56936.0,56935.0,0.002632]
[1726026123131,1.70624313,56936.0,56935.0,0.002632]
[1726026123582,1.7586313,56936.0,56935.0,0.002632]
[1726026123798,1.70624313,56936.0,56935.0,0.002632]
[1726026124205,1.7586313,56936.0,56935.0,0.002632]
[1726026124638,1.70624313,56936.0,56935.0,0.002632]
[1726026125317,1.7586313,56936.0,56935.0,0.002632]
[1726026125985,1.78482539,56936.0,56935.0,0.002632]
[1726026126215,2.26229048,56936.0,56935.0,0.002632]
[1726026126429,2.15751413,56936.0,56935.0,0.002632]
[1726026126695,2.15751413,56936.0,56935.0,0.001632]
[1726026126696,2.28748457,56936.0,56935.0,0.001632]
[1726026127162,2.17651413,56936.0,56935.0,0.001632]
[1726026127631,2.27041707,56936.0,56935.0,0.001632]
[1726026128311,2.30948457,56936.0,56935.0,0.001632]
[1726026128554,2.16951413,56936.0,56935.0,0.001632]
[1726026128775,2.27443882,56936.0,56935.0,0.001632]
[1726026129003,2.28643882,56936.0,56935.0,0.001632]
[1726026129231,2.18151413,56936.0,56935.0,0.001632]
[1726026129692,2.31248457,56936.0,56935.0,0.001632]
[1726026130372,2.18351413,56936.0,56935.0,0.001632]
[1726026130630,2.31248457,56936.0,56935.0,0.001632]
[1726026130856,1.72253018,56936.0,56935.0,0.001632]
[1726026131091,1.83024313,56936.0,56935.0,0.001632]
[1726026132201,1.96121357,56936.0,56935.0,0.001632]
[1726026134407,1.83024313,56936.0,56935.0,0.001632]
[1726026134856,1.96121357,56936.0,56935.0,0.001632]
[1726026135324,1.83024313,56936.0,56935.0,0.001632]
[1726026137399,1.93509516,56936.0,56935.0,0.001632]
[1726026138077,1.82738221,56936.0,56935.0,0.001632]
[1726026138371,1.93509516,56936.0,56935.0,0.001632]
[1726026143650,1.83024313,56936.0,56935.0,0.001632]
[1726026144327,1.93509516,56936.0,56935.0,0.001632]
[1726026145967,1.83024313,56936.0,56935.0,0.001632]
[1726026146189,1.93509516,56936.0,56935.0,0.001632]
[1726026147770,1.83024313,56936.0,56935.0,0.001632]
[1726026148211,1.93509516,56936.0,56935.0,0.001632]
[1726026148905,1.87299516,56936.0,56935.0,0.001632]
[1726026149128,1.76814313,56936.0,56935.0,0.001632]
[1726026149357,1.87299516,56936.0,56935.0,0.001632]
[1726026149814,1.76814313,56936.0,56935.0,0.001632]
[1726026150041,1.87299516,56936.0,56935.0,0.001632]
[1726026150261,1.76814313,56936.0,56935.0,0.001632]
[1726026150773,1.87299516,56936.0,56935.0,0.001632]
[1726026152118,1.76814313,56936.0,56935.0,0.001632]
[1726026152361,1.87299516,56936.0,56935.0,0.001632]
[1726026153011,1.64616586,56936.0,56935.0,0.001632]
[1726026153244,1.72768657,56936.0,56935.0,0.001632]
[1726026153484,1.72768829,56936.0,56935.0,0.001632]
[1726026154190,1.63602678,56936.0,56935.0,0.001632]
[1726026154655,1.64902678,56936.0,56935.0,0.001632]
[1726026155471,1.63702678,56936.0,56935.0,0.001632]
[1726026155700,1.62402678,56936.0,56935.0,0.001632]
[1726026156153,1.72892664,56936.0,56935.0,0.001632]
[1726026156402,1.82147548,56936.0,56935.0,0.002632]
[1726026156651,1.83247548,56936.0,56935.0,0.002632]
[1726026158284,1.72757562,56936.0,56935.0,0.002632]
[1726026158795,1.83250281,56936.0,56935.0,0.002632]
[1726026159246,1.72757562,56936.0,56935.0,0.002632]
[1726026159905,1.61986267,56936.0,56935.0,0.002632]
[1726026160135,1.85870044,56936.0,56935.0,0.002632]
[1726026163084,1.72757562,56936.0,56935.0,0.002632]
[1726026163754,1.79217562,56936.0,56935.0,0.002632]
[1726026169674,2.14344662,56936.0,56935.0,0.002632]
[1726026169902,1.79217562,56936.0,56935.0,0.002632]
[1726026172907,1.94973854,56936.0,56935.0,0.002632]
[1726026173331,1.95173854,56936.0,56935.0,0.002632]
[1726026174247,2.30300954,56936.0,56935.0,0.002632]
[1726026175094,2.14544662,56936.0,56935.0,0.002632]
[1726026176387,2.30304728,56936.0,56935.0,0.002632]
[1726026178875,2.48834728,56936.0,56935.0,0.002632]
[1726026179107,2.14344662,56936.0,56935.0,0.002632]
[1726026179355,1.80161819,56936.0,56935.0,0.002632]
[1726026179838,1.64402678,56936.0,56935.0,0.002632]
[1726026188667,1.99529778,56936.0,56935.0,0.002632]
[1726026188879,1.53631383,56936.0,56935.0,0.002632]
[1726026189116,1.80162508,56936.0,56935.0,0.002632]
[1726026189322,1.801648,56936.0,56935.0,0.002632]
[1726026189550,1.97781755,56936.0,56935.0,0.002632]
[1726026189989,1.8701046,56936.0,56935.0,0.002632]
[1726026190203,1.97781755,56936.0,56935.0,0.002632]
[1726026191521,1.82019633,56936.0,56935.0,0.002632]
[1726026191734,1.97781755,56936.0,56935.0,0.002632]
[1726026192158,1.82019633,56936.0,56935.0,0.002632]
[1726026192598,1.801648,56936.0,56935.0,0.002632]
[1726026194535,1.80167484,56936.0,56935.0,0.002632]
[1726026195039,1.64402678,56936.0,56935.0,0.002632]
[1726026199082,1.99529778,56936.0,56935.0,0.002632]
[1726026199288,1.64402678,56936.0,56935.0,0.002632]
[1726026199706,1.82019633,56936.0,56935.0,0.002632]
[1726026200536,1.64402678,56936.0,56935.0,0.002632]
[1726026200971,1.80174247,56936.0,56935.0,0.002632]
[1726026203577,1.69402952,56936.0,56935.0,0.002632]
[1726026203819,1.80174247,56936.0,56935.0,0.002632]
[1726026204687,1.80173314,56936.0,56935.0,0.067132]
[1726026205132,1.80173314,56936.0,56935.0,0.002632]
[1726026205993,1.97790269,56936.0,56935.0,0.002632]
[1726026211045,1.97778789,56936.0,56935.0,0.002632]
[1726026219789,0.60496539,56936.0,56935.0,0.065132]
[1726026220021,0.61746518,56936.0,56935.0,0.144332]
[1726026220262,1.00357785,56936.0,56935.0,0.144332]
[1726026220919,0.99257785,56936.0,56935.0,0.144332]
[1726026221152,0.99757785,56936.0,56935.0,0.145332]
[1726026221414,1.26441326,56936.0,56935.0,0.002632]
[1726026221641,1.27141326,56936.0,56935.0,0.003632]
[1726026222324,1.17149918,56936.0,56935.0,0.003632]
[1726026222571,1.15949918,56936.0,56935.0,0.001632]
[1726026223454,1.16849918,56936.0,56935.0,0.002632]
[1726026223898,1.15949918,56936.0,56935.0,0.001632]
[1726026224103,1.33823919,56936.0,56935.0,0.001632]
[1726026224312,1.33923919,56936.0,56935.0,0.002632]
[1726026224731,1.34623919,56936.0,56935.0,0.003632]
[1726026225985,1.35223919,56936.0,56935.0,0.003632]
[1726026226337,1.35223919,56936.0,56935.0,0.004632]
[1726026226338,1.80815619,56936.0,56935.0,0.004632]
[1726026226547,1.96582491,56936.0,56935.0,0.004632]
[1726026226703,1.80815619,56936.0,56935.0,0.003632]
[1726026226911,1.79915619,56936.0,56935.0,0.003632]
[1726026227121,2.15217319,56936.0,56935.0,0.004632]
[1726026227322,2.15217319,56936.0,56931.0,0.001632]
[1726026227323,1.390566,56932.0,56931.0,0.001632]
[1726026227527,1.75111913,56932.0,56931.0,0.001632]
[1726026227775,2.13215613,56932.0,56931.0,0.001632]
[1726026227988,2.15969268,56932.0,56931.0,0.001632]
[1726026229161,2.15969268,56932.0,56926.0,0.0046679]
[1726026229162,0.002,56927.0,56926.0,0.0046679]
[1726026229357,0.421674,56916.0,56907.0,0.0613]
[1726026229577,1.26755913,56916.0,56907.0,0.0613]
[1726026229800,1.54096218,56916.0,56907.0,0.0613]
[1726026230205,1.85238734,56916.0,56907.0,0.0613]
[1726026230663,1.98346771,56916.0,56907.0,0.0613]
[1726026231099,1.13735321,56916.0,56915.0,0.1418246]
[1726026231304,1.12698579,56916.0,56915.0,0.1418246]
[1726026231503,1.20563718,56916.0,56915.0,0.1418246]
[1726026231653,1.12698579,56916.0,56915.0,0.1418246]
[1726026231865,1.40810179,56916.0,56915.0,0.1418246]
[1726026232029,1.42110179,56916.0,56915.0,0.0654246]
[1726026232255,1.59727134,56916.0,56915.0,0.0041246]
[1726026232453,1.62369057,56916.0,56915.0,0.0041246]
[1726026232674,1.66392273,56916.0,56915.0,0.0041246]
[1726026232876,1.67392273,56916.0,56915.0,0.0041246]
[1726026233314,1.65992273,56916.0,56915.0,0.0041246]
[1726026233513,1.6046118,56916.0,56915.0,0.0041246]
[1726026233736,1.8757278,56916.0,56915.0,0.0041246]
[1726026233959,1.98059462,56916.0,56915.0,0.0041246]
[1726026234185,1.96859462,56916.0,56915.0,0.0041246]
[1726026234402,1.95628047,56916.0,56915.0,0.0041246]
[1726026234631,1.8777278,56916.0,56915.0,0.0041246]
[1726026234843,2.00864929,56916.0,56915.0,0.0041246]
[1726026235329,2.02164929,56916.0,56915.0,0.0041246]
[1726026235547,1.98244102,56916.0,56915.0,0.0041246]
[1726026235760,1.8777278,56916.0,56915.0,0.0041246]
[1726026236186,1.8917278,56916.0,56915.0,0.0041246]
[1726026236404,1.97024063,56916.0,56915.0,0.0041246]
[1726026236645,1.99644177,56916.0,56915.0,0.0041246]
[1726026237077,1.8917278,56916.0,56915.0,0.0041246]
[1726026237495,1.97022031,56916.0,56915.0,0.0041246]
[1726026238121,1.97021885,56916.0,56915.0,0.0041246]
[1726026238549,1.8625059,56916.0,56915.0,0.0041246]
[1726026238698,1.83633301,56916.0,56915.0,0.0041246]
[1726026239048,1.71555825,56916.0,56915.0,0.0041246]
[1726026240035,1.70155825,56916.0,56915.0,0.0041246]
[1726026241491,1.78202458,56916.0,56915.0,0.0041246]
[1726026241693,1.82214933,56916.0,56915.0,0.0041246]
[1726026241908,1.83433547,56916.0,56915.0,0.0041246]
[1726026242082,2.01050502,56916.0,56915.0,0.0041246]
[1726026242304,1.98429538,56916.0,56915.0,0.0041246]
[1726026242507,1.98329538,56916.0,56915.0,0.0041246]
[1726026242721,1.97029538,56916.0,56915.0,0.0041246]
[1726026242935,1.98429538,56916.0,56915.0,0.0041246]
[1726026243138,1.8937278,56916.0,56915.0,0.0041246]
[1726026245358,1.3267293,56916.0,56915.0,0.0654246]
[1726026245564,1.43444225,56916.0,56915.0,0.0654246]
[1726026247256,1.15332625,56916.0,56915.0,0.0654246]
[1726026247726,1.43444225,56916.0,56915.0,0.0654246]
[1726026247956,1.57788648,56916.0,56915.0,0.0654246]
[1726026248166,1.56388648,56916.0,56915.0,0.0654246]
[1726026248369,1.54988648,56916.0,56915.0,0.0654246]
[1726026248581,1.42044225,56916.0,56915.0,0.0654246]
[1726026248805,1.15032625,56916.0,56915.0,0.0654246]
[1726026249012,1.13632625,56916.0,56915.0,0.0654246]
[1726026249878,1.14932625,56916.0,56915.0,0.0654246]
[1726026250089,1.0416133,56916.0,56915.0,0.0654246]
[1726026250294,1.14932625,56916.0,56915.0,0.0654246]
[1726026251141,0.64915684,56916.0,56915.0,0.0654246]
[1726026251351,0.22748284,56916.0,56915.0,0.1418246]
[1726026251552,0.36804084,56916.0,56915.0,0.1418246]
[1726026251787,1.03798579,56916.0,56915.0,0.1418246]
[1726026251997,1.45214272,56916.0,56915.0,0.0041246]
[1726026252214,1.42814272,56916.0,56915.0,0.0041246]
[1726026252416,1.43014272,56916.0,56915.0,0.0041246]
[1726026252861,1.53014272,56916.0,56915.0,0.0041246]
[1726026253103,1.52914272,56916.0,56915.0,0.0041246]
[1726026253516,1.52814272,56916.0,56915.0,0.0041246]
[1726026254162,1.60017551,56916.0,56915.0,0.0041246]
[1726026255264,1.61217551,56916.0,56915.0,0.0041246]
[1726026255704,1.61317551,56916.0,56915.0,0.0041246]
[1726026255926,1.60017551,56916.0,56915.0,0.0041246]
[1726026256350,1.61317551,56916.0,56915.0,0.0041246]
[1726026256562,1.62717551,56916.0,56915.0,0.0041246]
[1726026256778,1.96879151,56916.0,56915.0,0.0041246]
[1726026259270,2.04717864,56916.0,56915.0,0.0041246]
[1726026259511,2.04917864,56916.0,56915.0,0.0041246]
[1726026260167,2.39029464,56916.0,56915.0,0.0041246]
[1726026260381,2.39029464,56916.0,56904.0,0.001636]
[1726026260382,0.984095,56905.0,56904.0,0.001636]
[1726026260657,1.33978092,56905.0,56904.0,0.001636]
[1726026261085,1.36732683,56905.0,56904.0,0.001636]
[1726026261311,1.64849683,56905.0,56904.0,0.001636]
[1726026261562,1.75149683,56905.0,56904.0,0.001636]
[1726026262005,1.75249683,56905.0,56904.0,0.001636]
[1726026262245,0.984406,56887.0,56886.0,0.0657]
[1726026262453,1.34009192,56887.0,56886.0,0.0657]
[1726026262882,1.08638589,56887.0,56886.0,0.0657]
[1726026263531,0.90664015,56887.0,56886.0,0.0657]
[1726026263756,0.90664015,56887.0,56886.0,0.0667358]
[1726026263985,0.984476,56883.0,56880.0,0.0678793]
[1726026264231,1.44016192,56883.0,56880.0,0.0021793]
[1726026265310,1.44616192,56883.0,56880.0,0.0021793]
[1726026265749,1.44816192,56883.0,56880.0,0.0021793]
[1726026266210,1.44916192,56883.0,56880.0,0.0021793]
[1726026266421,1.62496031,56883.0,56880.0,0.0021793]
[1726026266637,1.63496031,56883.0,56880.0,0.0021793]
[1726026266858,1.63496031,56883.0,56882.0,0.146836]
[1726026266859,0.19494018,56883.0,56882.0,0.146836]
[1726026267282,0.19494018,56883.0,56882.0,0.598762]
[1726026267283,0.009,56883.0,56882.0,0.598762]
[1726026267506,0.02755297,56887.0,56884.0,0.1452]
[1726026267743,0.02755297,56887.0,56886.0,0.1452]
[1726026268014,0.02755297,56887.0,56886.0,0.1682]
[1726026268258,0.02755297,56887.0,56886.0,0.620096]
[1726026268485,0.02755297,56887.0,56886.0,0.338832]
[1726026268914,0.02755297,56887.0,56886.0,0.1982]
[1726026269142,0.16818197,56887.0,56886.0,0.1682]
[1726026269800,0.02855297,56887.0,56886.0,0.1682]
[1726026270020,0.02855297,56887.0,56886.0,0.338832]
[1726026270244,0.02755297,56887.0,56886.0,0.338832]
[1726026270682,0.02755297,56887.0,56886.0,0.1992]
[1726026271151,0.02755297,56887.0,56886.0,0.1982]
[1726026271582,0.02755297,56887.0,56886.0,0.341468]
[1726026272262,0.02755297,56887.0,56886.0,0.200836]
[1726026273953,0.16818197,56887.0,56886.0,0.200836]
[1726026274169,0.02755297,56887.0,56886.0,0.200836]
[1726026277753,0.02755297,56887.0,56886.0,0.341468]